bitfinex/quotes_SOLUSD_20250929
["timestamp","ask_amount","ask_price","bid_price","bid_amount"]
[1759113814582,1.51870251,210.25,210.21,0.31]
[1759113815086,1.51870251,210.25,210.2,4.75737392]
[1759113815286,26.67,210.24,210.2,4.75737392]
[1759113815699,1.51870251,210.25,210.2,4.75737392]
[1759113815881,26.0,210.23,210.2,4.75737392]
[1759113816311,26.0,210.23,210.19,4.75760026]
[1759113816484,26.0,210.23,210.19,5.06760026]
[1759113816844,26.0,210.23,210.19,16.96160092]
[1759113816983,26.0,210.23,210.2,0.31]
[1759113818311,26.0,210.23,210.21,4.75714761]
[1759113818495,26.67,210.23,210.21,4.75714761]
[1759113819307,26.0,210.23,210.21,4.75714761]
[1759113820311,26.0,210.23,210.19,16.65160092]
[1759113820609,26.0,210.23,210.19,16.96160092]
[1759113822305,26.67,210.23,210.15,40.44726262]
[1759113822613,26.67,210.23,210.17,0.31]
[1759113822786,0.67,210.23,210.17,0.31]
[1759113823091,26.0,210.24,210.17,0.31]
[1759113823294,14.9778574,210.3,210.17,0.31]
[1759113823496,21.62,210.3,210.17,0.31]
[1759113823695,22.29,210.3,210.17,0.31]
[1759113823892,22.29,210.3,210.18,14.30512839]
[1759113824097,0.67,210.29,210.19,0.31]
[1759113824346,0.67,210.29,210.2,16.65080874]
[1759113824491,0.67,210.29,210.21,0.31]
[1759113824690,21.62,210.3,210.21,0.31]
[1759113824691,0.67,210.28,210.21,0.31]
[1759113825507,26.0,210.27,210.21,0.31]
[1759113825809,15.88034247,210.38,210.21,0.31]
[1759113826005,26.67,210.32,210.21,0.31]
[1759113826408,26.67,210.32,210.21,14.51561794]
[1759113826595,26.67,210.31,210.22,30.55481863]
[1759113826795,26.67,210.31,210.23,0.31]
[1759113827798,26.67,210.31,210.22,16.64922462]
[1759113828112,26.67,210.3,210.22,16.64922462]
[1759113828310,0.67,210.29,210.22,16.64922462]
[1759113828616,0.67,210.28,210.22,16.64922462]
[1759113830915,0.7,210.27,210.22,16.64922462]
[1759113831111,0.7,210.26,210.22,16.64922462]
[1759113833017,0.7,210.26,210.22,11.8923033]
[1759113833210,0.7,210.28,210.22,12.2023033]
[1759113834011,26.0,210.29,210.22,16.95922462]
[1759113834214,26.0,210.29,210.22,16.64922462]
[1759113834398,26.0,210.29,210.23,0.31]
[1759113836221,26.0,210.29,210.24,16.64764078]
[1759113836410,26.7,210.29,210.24,16.64764078]
[1759113837141,26.7,210.29,210.24,16.95764078]
[1759113837425,0.7,210.28,210.24,16.64764078]
[1759113838226,0.7,210.28,210.23,0.31]
[1759113839432,0.7,210.28,210.24,16.64764078]
[1759113840600,26.7,210.3,210.24,16.95764078]
[1759113841111,0.7,210.29,210.24,16.64764078]
[1759113841303,0.7,210.28,210.24,11.89117199]
[1759113845030,0.7,210.27,210.24,11.89117199]
[1759113845629,0.7,210.29,210.24,16.64764078]
[1759113845835,0.7,210.28,210.24,16.64764078]
[1759113847526,0.7,210.27,210.21,16.96001664]
[1759113847728,0.7,210.27,210.23,36.84]
[1759113848412,26.0,210.31,210.23,37.15]
[1759113848720,0.7,210.3,210.23,37.15]
[1759113848917,0.7,210.29,210.23,37.15]
[1759113849120,0.7,210.28,210.23,37.15]
[1759113850133,0.7,210.28,210.24,16.64764078]
[1759113850330,0.7,210.27,210.24,4.75646879]
[1759113850635,0.7,210.26,210.24,4.75646879]
[1759113851017,2.37466115,210.3,210.24,4.75646879]
[1759113851336,0.7,210.29,210.23,4.75669504]
[1759113851537,0.7,210.28,210.23,4.75669504]
[1759113851736,0.7,210.27,210.23,4.75669504]
[1759113851914,0.68,210.26,210.23,4.75669504]
[1759113853214,7.12978968,210.3,210.23,4.75669504]
[1759113853415,0.68,210.25,210.23,4.75669504]
[1759113853822,0.68,210.24,210.18,16.65188535]
[1759113854017,0.68,210.23,210.18,4.75782662]
[1759113854224,3.05466115,210.22,210.15,48.73592966]
[1759113854617,0.68,210.21,210.15,48.73592966]
[1759113854823,0.68,210.2,210.15,48.73592966]
[1759113855023,0.68,210.19,210.15,48.73592966]
[1759113855220,0.68,210.19,210.16,4.7582794]
[1759113856023,0.68,210.18,210.14,0.1]
[1759113856241,3.05466115,210.18,210.15,4.75847147]
[1759113856544,0.68,210.17,210.15,4.75847147]
[1759113856930,0.68,210.16,210.14,0.1]
[1759113857243,3.05466115,210.16,210.14,0.1]
[1759113858345,0.68,210.15,210.14,4.85869653]
[1759113858526,0.68,210.17,210.14,4.85869653]
[1759113858842,0.68,210.16,210.14,4.85869653]
[1759113859038,0.68,210.15,210.14,4.85869653]
[1759113868059,26.0,210.12,210.07,0.1]
[1759113868359,0.68,210.11,210.07,0.1]
[1759113868542,0.68,210.1,210.07,0.1]
[1759113868943,29.05466115,210.12,210.07,0.1]
[1759113869144,26.68,210.11,210.07,4.86030228]
[1759113870351,0.68,210.1,210.07,4.86030228]
[1759113872251,26.0,210.12,210.07,16.76109725]
[1759113872455,0.68,210.11,210.07,16.76109725]
[1759113872754,0.68,210.1,210.07,16.76109725]
[1759113874965,28.37466115,210.12,210.07,16.76109725]
[1759113875265,0.68,210.11,210.07,16.76109725]
[1759113876366,26.0,210.12,210.08,0.41]
[1759113876564,26.68,210.12,210.09,4.75986481]
[1759113876888,0.68,210.11,210.09,4.75986481]
[1759113877643,0.68,210.11,210.08,16.66031987]
[1759113878644,26.0,210.12,210.08,16.66031987]
[1759113878969,28.2014993,210.14,210.09,0.41]
[1759113879173,28.2014993,210.14,210.08,16.66031987]
[1759113879549,0.68,210.13,210.08,16.66031987]
[1759113879838,0.68,210.13,210.08,17.07031987]
[1759113880369,0.68,210.13,210.09,0.41]
[1759113880747,26.0,210.15,210.11,16.65794107]
[1759113880965,0.68,210.15,210.11,16.65794107]
[1759113882954,0.68,210.14,210.11,16.65794107]
[1759113883164,26.0,210.16,210.11,16.65794107]
[1759113883359,0.68,210.14,210.11,16.65794107]
[1759113883566,0.68,210.13,210.11,4.75941173]
[1759113883771,1.5214993,210.15,210.11,4.75941173]
[1759113884074,0.68,210.12,210.11,4.75941173]
[1759113884781,0.68,210.12,210.08,16.66000533]
[1759113885957,26.0,210.14,210.08,16.66000533]
[1759113886263,0.68,210.13,210.08,16.66000533]
[1759113886463,1.5214993,210.16,210.09,0.41]
[1759113886662,2.2014993,210.16,210.09,0.41]
[1759113887574,2.2014993,210.18,210.09,0.41]
[1759113887875,0.68,210.19,210.11,26.0]
[1759113888061,0.68,210.19,210.12,37.25]
[1759113888264,0.68,210.19,210.13,16.65635557]
[1759113888462,0.68,210.19,210.13,17.06635557]
[1759113888657,0.68,210.19,210.14,0.41]
[1759113888884,2.2014993,210.22,210.15,0.41]
[1759113889051,0.68,210.21,210.15,0.41]
[1759113890266,0.68,210.21,210.16,16.65397791]
[1759113890473,0.68,210.2,210.16,16.65397791]
[1759113890783,0.68,210.19,210.16,16.65397791]
[1759113891969,1.5214993,210.2,210.16,16.65397791]
[1759113892168,0.68,210.19,210.16,16.65397791]
[1759113892374,0.68,210.18,210.16,16.65397791]
[1759113893887,0.68,210.18,210.16,11.89569851]
[1759113894881,2.2014993,210.2,210.16,11.89569851]
[1759113895073,0.68,210.19,210.16,11.89569851]
[1759113897288,27.5214993,210.2,210.13,16.65635557]
[1759113897483,0.68,210.19,210.13,17.06635557]
[1759113900772,0.68,210.19,210.15,16.65477039]
[1759113900978,26.0,210.22,210.15,40.44729953]
[1759113901172,26.0,210.22,210.16,0.41]
[1759113901372,0.68,210.23,210.16,37.23]
[1759113901568,28.2014993,210.23,210.16,36.82]
[1759113901786,0.68,210.24,210.17,0.41]
[1759113901980,26.0,210.23,210.17,0.41]
[1759113902173,0.68,210.23,210.17,0.41]
[1759113902889,0.68,210.23,210.18,4.75782662]
[1759113903192,0.68,210.22,210.18,4.75782662]
[1759113903398,0.68,210.21,210.18,4.75782662]
[1759113903576,0.68,210.2,210.18,4.75782662]
[1759113903901,0.68,210.19,210.18,4.75782662]
[1759113904085,26.0,210.23,210.18,4.75782662]
[1759113904270,1.5214993,210.22,210.18,4.75782662]
[1759113904476,0.68,210.19,210.18,4.75782662]
[1759113904885,0.68,210.21,210.15,17.06477039]
[1759113906591,0.68,210.21,210.16,0.41]
[1759113906915,26.68,210.24,210.16,0.41]
[1759113907771,26.68,210.24,210.17,16.65318551]
[1759113908279,26.68,210.24,210.18,0.41]
[1759113909384,26.68,210.24,210.16,0.41]
[1759113909702,1.5214993,210.23,210.16,0.41]
[1759113909892,0.68,210.22,210.16,0.41]
[1759113911081,1.5214993,210.21,210.14,16.65556295]
[1759113911287,1.5214993,210.17,210.12,4.75914879]
[1759113911493,0.68,210.16,210.11,48.69846738]
[1759113911688,0.68,210.15,210.11,36.8]
[1759113911895,0.68,210.14,210.11,36.8]
[1759113912396,0.72,210.16,210.11,36.8]
[1759113912595,0.72,210.16,210.11,37.21]
[1759113913386,0.72,210.16,210.11,36.8]
[1759113913589,0.72,210.15,210.12,4.75918522]
[1759113914090,2.2414993,210.17,210.12,4.75918522]
[1759113914290,1.5214993,210.17,210.12,4.75918522]
[1759113914483,0.72,210.16,210.12,4.75918522]
[1759113914883,1.5214993,210.17,210.12,4.75918522]
[1759113915203,0.72,210.16,210.12,4.75918522]
[1759113915586,2.2414993,210.15,210.11,41.55939139]
[1759113915790,0.72,210.14,210.11,41.55939139]
[1759113916010,0.72,210.13,210.11,41.55939139]
[1759113916182,2.2414993,210.15,210.11,41.55939139]
[1759113916714,1.5214993,210.15,210.11,53.86792073]
[1759113916906,2.2414993,210.15,210.11,53.86792073]
[1759113917092,2.2414993,210.15,210.11,53.45792073]
[1759113917900,0.72,210.14,210.11,53.45792073]
[1759113918100,1.5214993,210.15,210.11,53.45792073]
[1759113918403,2.2414993,210.15,210.11,53.45792073]
[1759113919303,2.2414993,210.15,210.11,41.55939139]
[1759113919486,0.72,210.14,210.11,41.55939139]
[1759113919687,0.72,210.13,210.11,41.55939139]
[1759113919990,2.2414993,210.15,210.11,41.55939139]
[1759113920189,0.72,210.14,210.11,41.55939139]
[1759113920494,0.72,210.13,210.11,41.55939139]
[1759113920899,0.72,210.13,210.11,4.75939139]
[1759113921483,0.72,210.13,210.1,4.75963826]
[1759113922382,0.72,210.12,210.1,4.75963826]
[1759113922987,0.72,210.11,210.1,4.75963826]
[1759113923215,39.42133878,210.15,210.1,4.75963826]
[1759113923396,0.72,210.13,210.1,4.75963826]
[1759113923786,39.42133878,210.15,210.1,4.75963826]
[1759113923983,0.72,210.13,210.1,4.75963826]
[1759113924282,0.72,210.12,210.09,41.55985747]
[1759113924588,0.72,210.11,210.09,41.55985747]
[1759113925098,26.72,210.13,210.09,41.55985747]
[1759113925306,26.0,210.13,210.1,0.41]
[1759113925608,26.0,210.13,210.11,4.75941173]
[1759113927201,26.0,210.14,210.11,4.75941173]
[1759113927506,26.72,210.14,210.11,4.75941173]
[1759113927702,26.72,210.14,210.1,16.65873392]
[1759113927903,26.0,210.14,210.1,16.65873392]
[1759113928102,0.72,210.17,210.11,0.41]
[1759113928289,26.0,210.16,210.11,0.41]
[1759113928491,26.0,210.16,210.12,0.41]
[1759113928800,0.72,210.17,210.12,0.41]
[1759113929198,3.92393256,210.2,210.13,0.41]
[1759113929389,15.03195286,210.2,210.13,0.41]
[1759113929590,41.03195286,210.2,210.13,0.41]
[1759113929904,26.72,210.2,210.14,4.75873227]
[1759113930103,0.72,210.19,210.14,4.75873227]
[1759113930304,0.72,210.18,210.14,16.65556295]
[1759113930608,0.72,210.17,210.14,16.65556295]
[1759113931002,26.0,210.2,210.14,16.65556295]
[1759113931195,26.72,210.2,210.15,0.41]
[1759113931998,26.72,210.2,210.16,4.7582794]
[1759113932503,0.72,210.19,210.16,4.7582794]
[1759113934118,0.72,210.19,210.16,11.89569851]
[1759113935012,26.0,210.2,210.16,11.89569851]
[1759113935406,26.0,210.2,210.17,0.41]
[1759113935918,26.0,210.2,210.16,11.89569851]
[1759113936128,26.0,210.2,210.16,17.06397791]
[1759113936603,0.72,210.19,210.16,16.65397791]
[1759113937118,0.72,210.18,210.16,16.65397791]
[1759113938003,23.78990615,210.25,210.16,16.65397791]
[1759113938200,0.72,210.2,210.16,16.65397791]
[1759113938616,0.72,210.19,210.16,16.65397791]
[1759113939424,0.72,210.19,210.16,11.89569851]
[1759113940223,0.72,210.22,210.17,0.41]
[1759113940517,0.72,210.21,210.16,11.89569851]
[1759113940825,0.72,210.2,210.16,11.89569851]
[1759113941020,0.72,210.2,210.16,12.30569851]
[1759113941228,0.72,210.2,210.16,11.89569851]
[1759113941598,0.72,210.2,210.16,16.65397791]
[1759113941799,26.0,210.22,210.16,17.06397791]
[1759113941800,26.72,210.22,210.16,17.06397791]
[1759113944228,0.72,210.21,210.16,17.06397791]
[1759113946406,26.0,210.23,210.16,16.65397791]
[1759113946606,0.72,210.22,210.16,16.65397791]
[1759113946803,0.72,210.21,210.16,16.65397791]
[1759113947123,0.72,210.21,210.16,17.06397791]
[1759113947718,0.72,210.2,210.16,17.06397791]
[1759113947908,26.72,210.22,210.16,17.06397791]
[1759113948116,0.72,210.22,210.16,17.06397791]
[1759113948321,74.44585877,211.19,210.17,40.00559401]
[1759113948322,0.72,210.28,210.17,40.00559401]
[1759113948530,0.72,210.27,210.19,13.59559401]
[1759113948711,0.72,210.27,210.2,37.19]
[1759113949412,29.20195307,210.31,210.21,0.41]
[1759113949612,0.72,210.3,210.21,0.41]
[1759113950137,26.0,210.29,210.21,0.41]
[1759113950431,0.72,210.28,210.22,16.64922462]
[1759113950609,0.72,210.27,210.22,16.64922462]
[1759113950810,0.7,210.26,210.22,16.64922462]
[1759113952819,0.7,210.25,210.22,4.75692132]
[1759113953023,0.7,210.24,210.22,4.75692132]
[1759113953225,0.7,210.23,210.22,4.75692132]
[1759113953819,0.7,210.23,210.2,4.75737392]
[1759113954538,0.7,210.23,210.2,16.65080874]
[1759113955442,0.7,210.25,210.2,16.65080874]
[1759113955742,0.7,210.24,210.18,4.75770461]
[1759113955937,3.07494557,210.23,210.16,36.78]
[1759113956439,26.0,210.21,210.14,36.78]
[1759113956642,0.7,210.2,210.14,36.78]
[1759113956823,0.7,210.19,210.14,36.78]
[1759113957017,26.0,210.21,210.14,36.78]
[1759113957018,0.7,210.18,210.14,36.78]
[1759113957438,0.7,210.17,210.15,4.75850582]
[1759113957641,26.0,210.21,210.15,4.75850582]
[1759113957948,0.7,210.19,210.15,4.75850582]
[1759113958119,0.7,210.18,210.15,4.75850582]
[1759113959042,26.0,210.21,210.16,0.41]
[1759113959234,0.7,210.22,210.16,0.41]
[1759113959428,0.7,210.22,210.17,16.65318551]
[1759113959627,0.7,210.22,210.17,17.06318551]
[1759113960250,14.3078574,210.26,210.17,17.06318551]
[1759113960251,14.3078574,210.26,210.18,50.37559401]
[1759113960557,2.37494557,210.32,210.21,26.0]
[1759113960723,14.30512839,210.31,210.22,37.17]
[1759113960922,0.7,210.3,210.22,37.17]
[1759113961124,0.7,210.29,210.22,37.17]
[1759113961529,0.7,210.29,210.23,16.64843266]
[1759113963450,0.7,210.28,210.25,4.75624256]
[1759113963655,0.7,210.27,210.25,4.75624256]
[1759113963949,3.07494557,210.26,210.17,4.758053]
[1759113964155,0.7,210.25,210.18,0.41]
[1759113965141,0.7,210.25,210.19,4.75760026]
[1759113965340,26.0,210.26,210.2,0.41]
[1759113965751,26.7,210.26,210.2,0.41]
[1759113966230,26.7,210.26,210.19,53.41160092]
[1759113966426,0.7,210.25,210.19,53.41160092]
[1759113966637,0.7,210.24,210.19,41.51760026]
[1759113966841,0.7,210.23,210.19,41.51760026]
[1759113967048,0.7,210.22,210.19,41.51760026]
[1759113967448,0.7,210.28,210.2,0.41]
[1759113968954,0.7,210.28,210.21,16.65001664]
[1759113969155,0.7,210.28,210.22,0.41]
[1759113970059,26.7,210.28,210.22,0.41]
[1759113970966,3.89773296,210.31,210.23,67.00402667]
[1759113971262,0.7,210.31,210.24,0.41]
[1759113972246,0.7,210.31,210.25,16.64684898]
[1759113972448,26.0,210.32,210.26,0.41]
[1759113972752,26.65,210.33,210.26,0.41]
[1759113972948,26.65,210.33,210.27,36.76]
[1759113973173,0.65,210.33,210.27,36.76]
[1759113973352,0.65,210.33,210.27,37.17]
[1759113973675,26.0,210.34,210.27,37.17]
[1759113973676,0.65,210.32,210.27,36.76]
[1759113973953,0.65,210.31,210.27,36.76]
[1759113974160,26.65,210.33,210.28,16.64447402]
[1759113974540,26.0,210.35,210.28,17.05447402]
[1759113974739,0.65,210.34,210.28,17.05447402]
[1759113974945,0.65,210.33,210.28,16.64447402]
[1759113975156,0.65,210.32,210.28,16.64447402]
[1759113975465,0.65,210.31,210.28,4.755564]
[1759113975668,26.0,210.35,210.28,4.755564]
[1759113975871,0.65,210.34,210.28,4.755564]
[1759113976039,0.65,210.33,210.28,4.755564]
[1759113976238,0.65,210.32,210.28,4.755564]
[1759113976454,0.65,210.31,210.28,4.755564]
[1759113976651,0.65,210.3,210.28,4.755564]
[1759113976852,0.65,210.32,210.28,4.755564]
[1759113977064,0.65,210.31,210.28,4.755564]
[1759113978156,2.37494557,210.36,210.28,4.755564]
[1759113978157,26.65,210.33,210.28,4.755564]
[1759113978361,0.65,210.32,210.28,4.755564]
[1759113978565,0.65,210.31,210.28,4.755564]
[1759113978949,26.0,210.33,210.28,4.755564]
[1759113979151,0.65,210.32,210.28,4.755564]
[1759113979350,0.65,210.31,210.28,4.755564]
[1759113980147,26.65,210.33,210.28,4.755564]
[1759113980455,0.65,210.32,210.28,4.755564]
[1759113980764,0.65,210.31,210.28,4.755564]
[1759113980959,0.72,210.31,210.28,4.755564]
[1759113981167,26.0,210.33,210.28,4.755564]
[1759113981466,0.72,210.32,210.28,4.755564]
[1759113981650,0.72,210.31,210.28,4.755564]
[1759113981850,0.72,210.3,210.28,4.755564]
[1759113982861,0.72,210.29,210.28,4.755564]
[1759113983344,28.37494557,210.34,210.27,36.76]
[1759113983345,26.0,210.33,210.27,36.76]
[1759113983550,26.0,210.31,210.26,41.49580951]
[1759113983772,0.72,210.3,210.26,41.49580951]
[1759113983971,0.72,210.29,210.26,41.49580951]
[1759113984673,0.72,210.28,210.26,41.49580951]
[1759113985466,0.72,210.27,210.26,36.74]
[1759113985957,0.72,210.27,210.21,4.75714761]
[1759113986268,0.72,210.26,210.23,36.74]
[1759113986658,0.72,210.25,210.23,41.49663867]
[1759113987048,0.72,210.25,210.23,4.75663867]
[1759113987256,0.72,210.25,210.23,41.49663867]
[1759113987881,0.72,210.3,210.24,0.41]
[1759113988050,26.72,210.3,210.24,0.41]
[1759113988577,26.72,210.3,210.25,4.75624256]
[1759113988755,0.72,210.3,210.25,4.75624256]
[1759113989071,0.72,210.29,210.25,4.75624256]
[1759113989376,0.72,210.29,210.26,36.74]
[1759113989553,0.72,210.28,210.26,36.74]
[1759113990054,26.72,210.3,210.26,36.74]
[1759113990255,0.72,210.29,210.26,36.74]
[1759113990860,0.72,210.29,210.27,4.75579017]
[1759113992967,2.37494557,210.35,210.28,0.41]
[1759113993174,0.72,210.34,210.28,37.15]
[1759113993653,5.57489828,210.37,210.29,14.00559401]
[1759113993654,0.72,210.36,210.29,14.00559401]
[1759113993859,26.0,210.37,210.31,13.59559401]
[1759113994067,26.0,210.37,210.32,36.74]
[1759113994254,26.72,210.37,210.32,36.74]
[1759113994460,0.72,210.37,210.32,37.15]
[1759113994662,0.72,210.37,210.33,4.7544335]
[1759113994869,0.72,210.36,210.33,16.64051727]
[1759113996561,3.09494557,210.35,210.33,4.7544335]
[1759113996760,0.72,210.34,210.33,4.7544335]
[1759113996956,0.72,210.34,210.28,0.41]
[1759113996957,0.72,210.34,210.32,36.74]
[1759113997160,3.09494557,210.33,210.31,41.49479344]
[1759113997569,0.72,210.32,210.28,4.755564]
[1759113997780,2.37494557,210.29,210.26,36.74]
[1759113997962,26.0,210.33,210.26,36.74]
[1759113997963,2.37494557,210.27,210.26,36.74]
[1759113998360,3.09494557,210.27,210.22,4.75692132]
[1759113998557,2.37494557,210.24,210.2,4.75737392]
[1759113998874,3.09494557,210.24,210.21,36.74]
[1759113999250,26.72,210.29,210.22,0.41]
[1759113999455,2.37494557,210.27,210.22,0.41]
[1759113999863,0.72,210.26,210.21,36.74]
[1759114000181,3.09494557,210.26,210.21,37.15]
[1759114000384,1.5193749,210.26,210.21,37.15]
[1759114000752,2.2393749,210.26,210.22,4.75692132]
[1759114001576,1.5193749,210.24,210.21,36.74]
[1759114001774,0.72,210.23,210.22,36.74]
[1759114002158,0.72,210.23,210.16,4.7582794]
[1759114002361,1.5193749,210.2,210.16,4.7582794]
[1759114002564,2.2393749,210.2,210.17,28.58]
[1759114002869,1.5193749,210.18,210.14,4.75854118]
[1759114003069,0.72,210.17,210.15,36.76]
[1759114003583,1.5193749,210.18,210.15,36.76]
[1759114003770,0.72,210.17,210.15,36.76]
[1759114003966,2.2393749,210.16,210.15,36.76]
[1759114004583,2.2393749,210.16,210.11,4.75928017]
[1759114004880,1.5193749,210.14,210.12,36.78]
[1759114005078,0.72,210.13,210.12,36.78]
[1759114005269,1.5193749,210.14,210.12,41.53918059]
[1759114005473,1.5193749,210.14,210.07,0.1]
[1759114005474,0.72,210.13,210.07,0.1]
[1759114005659,1.5193749,210.11,210.07,36.88]
[1759114006061,2.2393749,210.11,210.07,36.88]
[1759114006491,1.5193749,210.13,210.08,4.76003299]
[1759114006693,2.2393749,210.13,210.08,4.76003299]
[1759114006872,0.72,210.12,210.08,4.76003299]
[1759114007457,1.5193749,210.13,210.08,4.76003299]
[1759114007661,0.72,210.11,210.08,4.76003299]
[1759114008067,1.5193749,210.13,210.08,4.76003299]
[1759114008272,1.5193749,210.13,210.08,16.66026147]
[1759114008471,1.5193749,210.13,210.08,17.07026147]
[1759114008769,2.2393749,210.13,210.08,17.07026147]
[1759114008965,1.5193749,210.13,210.08,16.66026147]
[1759114009189,0.72,210.12,210.08,16.66026147]
[1759114010269,1.5193749,210.13,210.09,0.41]
[1759114010479,1.5193749,210.13,210.08,16.66026147]
[1759114010683,1.5193749,210.13,210.08,17.07026147]
[1759114011483,2.1893749,210.13,210.08,17.07026147]
[1759114012868,1.5193749,210.13,210.1,4.75963826]
[1759114013069,2.1893749,210.16,210.1,16.65873392]
[1759114013395,2.1893749,210.16,210.11,36.78]
[1759114013591,0.67,210.15,210.11,36.78]
[1759114014497,0.67,210.15,210.12,4.75918522]
[1759114015164,1.5193749,210.16,210.12,4.75918522]
[1759114015369,2.1893749,210.16,210.12,4.75918522]
[1759114017496,26.0,210.18,210.13,0.41]
[1759114017800,0.67,210.2,210.13,0.41]
[1759114017801,1.5193749,210.19,210.13,0.41]
[1759114018696,0.67,210.2,210.13,0.41]
[1759114019292,0.67,210.2,210.14,16.65556295]
[1759114019586,0.67,210.2,210.15,36.76]
[1759114020400,0.67,210.2,210.15,37.17]
[1759114021297,1.5193749,210.21,210.16,17.06397791]
[1759114021701,2.1893749,210.21,210.16,17.06397791]
[1759114022899,2.1893749,210.21,210.16,16.65397791]
[1759114023110,1.5193749,210.21,210.16,16.65397791]
[1759114023283,2.1893749,210.21,210.16,16.65397791]
[1759114023599,1.5193749,210.21,210.16,17.06397791]
[1759114023777,1.5193749,210.23,210.16,16.65397791]
[1759114023981,1.5193749,210.21,210.16,16.65397791]
[1759114024191,0.67,210.2,210.16,16.65397791]
[1759114024989,1.5193749,210.21,210.17,36.76]
[1759114025193,0.67,210.2,210.17,36.76]
[1759114025500,1.5193749,210.21,210.18,4.75782662]
[1759114025701,0.67,210.19,210.18,4.75782662]
[1759114026383,2.1893749,210.19,210.13,11.89715015]
[1759114026591,2.1893749,210.19,210.14,36.76]
[1759114026794,0.67,210.18,210.14,36.76]
[1759114027300,1.5193749,210.19,210.14,53.41556295]
[1759114027488,1.5193749,210.19,210.15,0.41]
[1759114027687,0.67,210.2,210.16,16.65397791]
[1759114028089,1.5193749,210.21,210.16,16.65397791]
[1759114028292,2.1893749,210.21,210.16,17.06397791]
[1759114032508,0.67,210.2,210.16,11.89569851]
[1759114033022,1.5193749,210.21,210.16,12.30569851]
[1759114033213,2.1893749,210.21,210.16,12.30569851]
[1759114033416,1.5193749,210.21,210.17,0.41]
[1759114033602,1.5193749,210.21,210.18,4.75782662]
[1759114034723,2.1893749,210.21,210.18,4.75782662]
[1759114034923,1.5193749,210.21,210.18,4.75782662]
[1759114035299,1.5193749,210.21,210.17,4.758053]
[1759114035822,0.67,210.23,210.18,0.41]
[1759114036021,1.5193749,210.23,210.19,0.41]
[1759114036327,2.1893749,210.23,210.18,36.76]
[1759114036496,1.5193749,210.23,210.19,0.41]
[1759114036924,1.5193749,210.23,210.2,0.41]
[1759114037306,1.5193749,210.23,210.21,4.75714761]
[1759114038612,2.1893749,210.27,210.21,16.65001664]
[1759114038811,2.1893749,210.27,210.21,17.06001664]
[1759114039028,2.1893749,210.27,210.22,36.76]
[1759114040202,0.67,210.26,210.23,4.75669504]
[1759114040730,1.5193749,210.27,210.23,16.64843266]
[1759114040903,1.5193749,210.27,210.24,0.41]
[1759114041712,1.5193749,210.27,210.23,16.64843266]
[1759114041921,2.2393749,210.29,210.23,17.05843266]
[1759114042207,0.72,210.28,210.23,17.05843266]
[1759114043503,1.5193749,210.29,210.23,16.64843266]
[1759114043804,2.2393749,210.33,210.25,13.59559401]
[1759114044028,2.2393749,210.33,210.26,37.17]
[1759114044228,2.2393749,210.33,210.27,0.41]
[1759114044729,27.5193749,210.33,210.28,16.64447402]
[1759114044923,27.5193749,210.33,210.28,17.05447402]
[1759114045122,1.5193749,210.33,210.28,17.05447402]
[1759114045324,0.72,210.33,210.28,17.05447402]
[1759114045633,26.0,210.34,210.29,0.41]
[1759114045797,26.0,210.34,210.3,37.17]